[Event "8th Dolomiti Open 2017"]
[Site "Forni di Sopra"]
[Date "2017.06.16"]
[Round "8.7"]
[White "Seresin, Francesco"]
[Black "Bifulco, Michel"]
[Result "1/2-1/2"]
[ECO "D45"]
[WhiteElo "2280"]
[BlackElo "2254"]
[Annotator "ChessBase"]
[PlyCount "80"]
[EventDate "2017.??.??"]
[EventType "swiss"]
[EventCountry "ITA"]
[SourceTitle "playchess.com"]
[Source "ChessBase"]
[SourceQuality "1"]
[TimeControl "40/5400+30:1800+30"]

1. d4 {[%emt 0:00:30]} d5 {[%emt 0:01:00]} 2. c4 {[%emt 0:00:30]} e6 {[%emt 0:00:00]} 3. Nc3 {[%emt 0:00:30]} c6 {[%emt 0:00:00]} 4. e3 {[%emt 0:00:30]} Nf6 {[%emt 0:00:00]} 5. Nf3 {[%emt 0:00:30]} Nbd7 {[%emt 0:00:00]} 6. Qc2 {[%emt 0:00:30]} Bd6 {[%emt 0:00:30]} 7. b3 {[%emt 0:00:30]} O-O {[%emt 0:00:30]} 8. Be2 {[%emt 0:00:30]} e5 {[%emt 0:00:00]} 9. cxd5 {[%emt 0:01:30]} cxd5 {[%emt 0:00:00]} 10. Nb5 {[%emt 0:03:30]} Bb4+ {[%emt 0:00:30]} 11. Bd2 {[%emt 0:01:30]} Bxd2+ {[%emt 0:00:30]} 12. Nxd2 {[%emt 0:04:30]} a6 {[%emt 0:00:30]} 13. dxe5 {[%emt 0:03:30]} Nxe5 {[%emt 0:00:30]} 14. Nd4 {[%emt 0:00:00]} Bg4 {[%emt 0:01:30]} 15. O-O {[%emt 0:07:00]} Qd6 {[%emt 0:12:30]} 16. N2f3 {[%emt 0:10:30]} Rac8 {[%emt 0:07:30]} 17. Qb2 {[%emt 0:01:30]} Rfd8 {[%emt 0:01:30]} 18. Rac1 {[%emt 0:04:30]} Nfd7 {[%emt 0:21:30]} 19. Rfd1 {[%emt 0:07:30]} Qf6 {[%emt 0:07:30]} 20. Nxe5 {[%emt 0:06:30]} Nxe5 {[%emt 0:00:30]} 21. Bxg4 {[%emt 0:00:30]} Nxg4 {[%emt 0:00:30]} 22. Qe2 {[%emt 0:00:00]} Ne5 {[%emt 0:03:30]} 23. h3 {[%emt 0:04:00]} h6 {[%emt 0:01:30]} 24. Rc2 {[%emt 0:03:30]} Nc6 {[%emt 0:04:30]} 25. Nxc6 {[%emt 0:05:30]} Rxc6 {[%emt 0:00:00]} 26. Rcd2 {[%emt 0:00:30]} Qe6 {[%emt 0:08:00]} 27. Rd4 {[%emt 0:02:30]} Qf5 {[%emt 0:00:30]} 28. Qg4 {[%emt 0:09:30]} Qxg4 {[%emt 0:01:30]} 29. hxg4 {[%emt 0:00:00]} Rc2 {[%emt 0:01:30]} 30. a4 {[%emt 0:03:41]} Rb2 {[%emt 0:01:30]} 31. Rb4 {[%emt 0:00:52]} Rd7 {[%emt 0:01:30]} 32. Rdd4 {[%emt 0:01:15]} Rc7 {[%emt 0:03:30]} 33. Rf4 {[%emt 0:08:27]} f6 {[%emt 0:04:31]} 34. Rb6 {[%emt 0:01:27]} Kf8 {[%emt 0:02:26]} 35. Rf5 {[%emt 0:02:16]} Ke8 {[%emt 0:03:04]} 36. Rxd5 {[%emt 0:02:22]} Rc1+ {[%emt 0:00:19]} 37. Kh2 {[%emt 0:00:05]} Rxf2 {[%emt 0:00:52]} 38. Rxb7 {[%emt 0:02:26]} Rcc2 {[%emt 0:00:25]} 39. Rdd7 {[%emt 0:00:25]} Rxg2+ {[%emt 0:00:26]} 40. Kh3 {[%emt 0:00:00]} Rcf2 1/2-1/2

[Event "8th Dolomiti Open 2017"]
[Site "Forni di Sopra"]
[Date "2017.06.16"]
[Round "8.8"]
[White "Herbrechtsmeier, Christof"]
[Black "Henderson de La Fuente, Lance"]
[Result "0-1"]
[ECO "B85"]
[WhiteElo "2240"]
[BlackElo "2365"]
[Annotator "ChessBase"]
[PlyCount "56"]
[EventDate "2017.??.??"]
[EventType "swiss"]
[EventCountry "ITA"]
[SourceTitle "playchess.com"]
[Source "ChessBase"]
[SourceQuality "1"]
[TimeControl "40/5400+30:1800+30"]

1. e4 {[%emt 0:00:30]} c5 {[%emt 0:01:00]} 2. Nf3 {[%emt 0:00:00]} e6 {[%emt 0:00:00]} 3. d4 {[%emt 0:00:00]} cxd4 {[%emt 0:00:00]} 4. Nxd4 {[%emt 0:00:00]} Nc6 {[%emt 0:00:30]} 5. Nc3 {[%emt 0:00:00]} Qc7 {[%emt 0:00:30]} 6. Be2 {[%emt 0:00:30]} a6 {[%emt 0:00:00]} 7. O-O {[%emt 0:00:00]} Nf6 {[%emt 0:00:00]} 8. Be3 {[%emt 0:00:00]} Be7 {[%emt 0:00:30]} 9. f4 {[%emt 0:00:30]} d6 {[%emt 0:00:30]} 10. Qe1 {[%emt 0:00:30]} O-O {[%emt 0:00:00]} 11. Qg3 {[%emt 0:00:30]} Nxd4 {[%emt 0:00:00]} 12. Bxd4 {[%emt 0:00:30]} b5 {[%emt 0:00:30]} 13. a3 {[%emt 0:00:30]} Bb7 {[%emt 0:00:30]} 14. Bd3 {[%emt 0:01:30]} Rad8 {[%emt 0:01:30]} 15. Rae1 {[%emt 0:02:30]} d5 {[%emt 0:03:30]} 16. Bxf6 {[%emt 0:04:30]} Bxf6 {[%emt 0:00:30]} 17. e5 {[%emt 0:00:30]} Be7 {[%emt 0:00:30]} 18. Nd1 {[%emt 0:02:30]} Bc5+ {[%emt 0:07:30]} 19. Kh1 {[%emt 0:01:30]} f5 {[%emt 0:02:30]} 20. exf6 {[%emt 0:05:30]} Rxf6 {[%emt 0:00:30]} 21. Ne3 {[%emt 0:04:30]} Rdf8 {[%emt 0:06:30]} 22. Qh3 {[%emt 0:05:30]} g6 {[%emt 0:01:30]} 23. Ng4 {[%emt 0:04:30]} Rxf4 {[%emt 0:00:30]} 24. Rxf4 {[%emt 0:02:30]} Qxf4 {[%emt 0:00:30]} 25. Ne5 {[%emt 0:03:30]} Bc8 {[%emt 0:03:30]} 26. g3 {[%emt 0:03:30]} Qg5 {[%emt 0:06:30]} 27. Qg2 {[%emt 0:01:30]} Rf2 {[%emt 0:02:30]} 28. Qg1 {[%emt 0:00:30]} Rxc2 {[%emt 0:04:30]} 0-1

[Event "8th Dolomiti Open 2017"]
[Site "Forni di Sopra"]
[Date "2017.06.16"]
[Round "8.9"]
[White "De Santis, Alessio"]
[Black "Vezzosi, Paolo"]
[Result "1/2-1/2"]
[ECO "E14"]
[WhiteElo "2242"]
[BlackElo "2333"]
[Annotator "ChessBase"]
[PlyCount "28"]
[EventDate "2017.??.??"]
[EventType "swiss"]
[EventCountry "ITA"]
[SourceTitle "playchess.com"]
[Source "ChessBase"]
[SourceQuality "1"]
[TimeControl "40/5400+30:1800+30"]

1. Nf3 {[%emt 0:01:30]} d5 {[%emt 0:01:00]} 2. c4 {[%emt 0:01:30]} e6 {[%emt 0:00:30]} 3. e3 {[%emt 0:02:30]} Nf6 {[%emt 0:00:30]} 4. b3 {[%emt 0:00:30]} Be7 {[%emt 0:03:30]} 5. Bb2 {[%emt 0:00:30]} O-O {[%emt 0:00:30]} 6. Nc3 {[%emt 0:00:00]} b6 {[%emt 0:05:30]} 7. Be2 {[%emt 0:00:00]} Bb7 {[%emt 0:00:30]} 8. O-O {[%emt 0:00:30]} c5 {[%emt 0:02:30]} 9. d4 {[%emt 0:07:30]} Nbd7 {[%emt 0:02:30]} 10. a4 {[%emt 0:09:30]} Ne4 {[%emt 0:07:30]} 11. Nxe4 {[%emt 0:01:30]} dxe4 {[%emt 0:00:30]} 12. Ne5 {[%emt 0:01:30]} Nxe5 {[%emt 0:18:30]} 13. dxe5 {[%emt 0:00:30]} Qc7 {[%emt 0:00:30]} 14. Qc2 {[%emt 0:00:30]} Rfd8 {[%emt 0:07:30]} 1/2-1/2